bitfinex/quotes_SOLUSD_20250617
["timestamp","ask_amount","ask_price","bid_price","bid_amount"]
[1750168469230,6.6805264,149.69,149.65,11.26226544]
[1750168469231,29.9119143,149.69,149.65,11.26226544]
[1750168469525,18.64964886,149.69,149.66,11.26226544]
[1750168469709,29.9119143,149.69,149.65,11.26226544]
[1750168470314,36.59249679,149.69,149.65,11.26226544]
[1750168470830,36.59249679,149.69,149.64,17.94481584]
[1750168471146,25.33023135,149.69,149.64,17.94481584]
[1750168471306,36.59249679,149.69,149.64,17.94481584]
[1750168471919,18.64964886,149.69,149.66,11.26226544]
[1750168472631,28.24,149.7,149.67,11.26226544]
[1750168472820,34.92010251,149.7,149.67,11.26226544]
[1750168473016,46.18236795,149.7,149.66,11.26226544]
[1750168473931,17.94236795,149.7,149.66,11.26226544]
[1750168474240,6.68010251,149.7,149.66,11.26226544]
[1750168474556,17.94236795,149.7,149.66,11.26226544]
[1750168474833,6.68010251,149.7,149.66,11.26226544]
[1750168474995,17.94236795,149.7,149.66,11.26226544]
[1750168476626,18.64964886,149.69,149.63,6.68315177]
[1750168476808,25.21584296,149.69,149.65,6.5661941]
[1750168477218,18.64964886,149.69,149.65,6.5661941]
[1750168477803,6.5661941,149.7,149.66,6.5661941]
[1750168478107,6.5,149.71,149.68,6.5661941]
[1750168478507,6.5,149.71,149.65,6.68222968]
[1750168478723,6.5,149.71,149.68,6.5661941]
[1750168479526,6.5,149.71,149.64,23.38944329]
[1750168479714,6.5,149.71,149.68,6.5661941]
[1750168481354,19.74579006,149.71,149.67,6.5661941]
[1750168481506,13.17959596,149.71,149.67,6.5661941]
[1750168481712,19.74579006,149.71,149.67,6.5661941]
[1750168483229,6.5661941,149.69,149.65,6.5661941]
[1750168483410,25.21584296,149.7,149.65,6.5661941]
[1750168484229,31.89597972,149.7,149.66,6.5661941]
[1750168484433,31.89597972,149.7,149.65,13.24818226]
[1750168484644,36.86820838,149.7,149.66,6.5661941]
[1750168485327,31.89597972,149.7,149.66,6.5661941]
[1750168485825,30.3112023,149.7,149.66,6.5661941]
[1750168486042,31.89597972,149.7,149.65,6.68198816]
[1750168486215,6.5661941,149.69,149.64,6.68250252]
[1750168486528,6.5661941,149.69,149.65,6.5661941]
[1750168486834,4.98141668,149.69,149.66,6.5661941]
[1750168487033,4.98141668,149.69,149.67,6.5661941]
[1750168487335,13.17976929,149.71,149.68,13.24697645]
[1750168487336,6.5,149.71,149.68,13.24697645]
[1750168487506,6.5,149.71,149.68,6.5661941]
[1750168487717,11.48374813,149.71,149.68,6.5661941]
[1750168487917,11.48374813,149.71,149.69,6.5661941]
[1750168488128,6.5,149.71,149.69,6.5661941]
[1750168488826,6.5,149.71,149.67,6.68118231]
[1750168489151,6.5,149.71,149.69,6.5661941]
[1750168490853,4.98374813,149.72,149.69,6.5661941]
[1750168491233,4.98374813,149.72,149.68,13.24702107]
[1750168491427,25.21584296,149.71,149.63,0.14216157]
[1750168491730,6.5661941,149.67,149.63,6.5661941]
[1750168491933,30.19959109,149.69,149.64,6.5661941]
[1750168492452,4.98374813,149.68,149.65,6.5661941]
[1750168492614,4.98374813,149.68,149.66,6.5661941]
[1750168492816,4.98374813,149.69,149.66,6.5661941]
[1750168493044,19.44364449,149.73,149.68,8.1212941]
[1750168493257,4.99033695,149.72,149.69,32.2377]
[1750168493426,6.19918768,149.78,149.72,6.67901043]
[1750168493633,6.67572023,149.8,149.74,6.5661941]
[1750168493834,39.24191433,149.8,149.75,6.5661941]
[1750168494154,6.5661941,149.78,149.73,6.5661941]
[1750168494338,25.21584296,149.77,149.72,13.24520453]
[1750168494856,26.0,149.77,149.74,11.24373674]
[1750168495025,18.64964886,149.77,149.74,11.24373674]
[1750168495226,29.8933856,149.77,149.72,6.67901043]
[1750168495427,44.64964886,149.77,149.73,11.24373674]
[1750168496137,51.32656104,149.77,149.73,11.24373674]
[1750168497147,51.32656104,149.77,149.74,11.24373674]
[1750168497537,51.32656104,149.77,149.72,6.67912062]
[1750168497737,51.32656104,149.77,149.74,11.24373674]
[1750168498238,62.57029778,149.77,149.73,11.24373674]
[1750168498721,11.24373674,149.76,149.72,11.24373674]
[1750168499034,62.57029778,149.77,149.73,11.24373674]
[1750168500254,62.57029778,149.77,149.71,6.6792309]
[1750168500441,18.64964886,149.75,149.72,11.24373674]
[1750168500649,18.64964886,149.75,149.73,11.24373674]
[1750168500841,18.64964886,149.76,149.73,11.24373674]
[1750168501156,18.64964886,149.76,149.68,1.5551]
[1750168501157,11.24373674,149.75,149.69,6.68035321]
[1750168501654,18.64964886,149.72,149.68,1.5551]
[1750168501858,18.64964886,149.72,149.69,11.24373674]
[1750168502026,18.64964886,149.72,149.7,11.24373674]
[1750168503347,17.922146,149.74,149.7,11.24373674]
[1750168503660,28.22,149.75,149.68,8.23597728]
[1750168503964,13.07651361,149.78,149.7,23.38009352]
[1750168504143,29.8933856,149.77,149.73,11.24373674]
[1750168504562,18.64964886,149.77,149.74,11.24373674]
[1750168504765,18.64964886,149.77,149.7,6.68002672]
[1750168504937,29.8933856,149.77,149.73,11.24373674]
[1750168505132,34.87807645,149.77,149.73,11.24373674]
[1750168505646,4.98469085,149.77,149.74,11.24373674]
[1750168505837,11.38469085,149.78,149.74,11.24373674]
[1750168506161,18.06145382,149.78,149.75,11.24373674]
[1750168506352,6.4,149.78,149.71,6.3393]
[1750168506552,17.64373674,149.78,149.74,11.24373674]
[1750168506759,29.30299717,149.78,149.74,11.24373674]
[1750168507737,6.67735042,149.76,149.69,23.38165541]
[1750168508153,6.67735042,149.76,149.73,11.24373674]
[1750168508672,17.92108716,149.76,149.69,6.68047297]
[1750168509039,6.67735042,149.76,149.69,6.68047297]
[1750168509350,6.67735042,149.76,149.73,11.24373674]
[1750168510478,6.67735042,149.76,149.68,1.69726157]
[1750168510479,18.64964886,149.73,149.68,1.5551]
[1750168510769,29.8933856,149.73,149.69,11.24373674]
[1750168511063,18.64964886,149.73,149.69,11.24373674]
[1750168511274,29.8933856,149.73,149.69,11.24373674]
[1750168511440,11.24373674,149.72,149.68,12.79883674]
[1750168511769,17.92301925,149.72,149.68,12.79883674]
[1750168512439,6.67928251,149.72,149.69,11.24373674]
[1750168512638,6.67928251,149.72,149.68,1.5551]
[1750168512834,6.67928251,149.72,149.69,11.24373674]
[1750168513349,17.92301925,149.72,149.68,12.79883674]
[1750168513762,6.67928251,149.72,149.68,12.79883674]
[1750168514172,25.32849106,149.73,149.69,11.24373674]
[1750168514467,36.5722278,149.73,149.69,11.24373674]
[1750168514845,31.89096284,149.73,149.69,6.56247178]
[1750168515048,25.32849106,149.73,149.69,6.56247178]
[1750168515355,31.89096284,149.73,149.69,6.56247178]
[1750168515862,6.56247178,149.72,149.68,8.11757178]
[1750168516376,6.56247178,149.72,149.68,6.56247178]
[1750168516573,6.56247178,149.71,149.66,6.68166628]
[1750168516869,6.56247178,149.71,149.67,6.56247178]
[1750168517241,18.64964886,149.71,149.68,6.56247178]
[1750168517752,25.32935125,149.71,149.64,27.6179]
[1750168518083,6.56247178,149.68,149.64,1.6179]
[1750168518242,33.1856058,149.7,149.66,6.56247178]
[1750168518445,28.2,149.7,149.66,6.56247178]
[1750168518738,34.76247178,149.7,149.66,6.56247178]
[1750168519374,41.44285217,149.7,149.66,6.56247178]
[1750168520773,34.88038039,149.7,149.66,6.56247178]
[1750168521069,6.56247178,149.69,149.64,8.30050004]
[1750168521414,18.64964886,149.69,149.66,6.56247178]
[1750168522155,18.64964886,149.69,149.64,8.30050004]
[1750168522156,25.21212064,149.69,149.65,6.56247178]
[1750168522376,31.89281573,149.69,149.65,6.56247178]
[1750168523060,18.64964886,149.68,149.64,8.18037178]
[1750168523256,18.64964886,149.68,149.65,6.56247178]
[1750168523563,18.64964886,149.68,149.63,6.68303614]
[1750168523564,6.56247178,149.67,149.63,6.56247178]
[1750168524145,18.64964886,149.68,149.63,6.56247178]
[1750168524373,13.24428388,149.66,149.62,6.56247178]
[1750168524551,6.6818121,149.66,149.63,6.56247178]
[1750168524879,13.24428388,149.66,149.62,6.56247178]
[1750168525174,6.6818121,149.66,149.63,6.56247178]
[1750168525553,6.6818121,149.66,149.61,6.68383846]
[1750168525977,6.6818121,149.66,149.63,6.56247178]
[1750168526180,25.21212064,149.65,149.6,8.32518704]
[1750168526359,25.21212064,149.65,149.61,6.56247178]
[1750168527169,25.21212064,149.65,149.6,8.20317178]
[1750168527474,18.64964886,149.65,149.61,6.56247178]
[1750168527655,6.56247178,149.66,149.62,6.56247178]
[1750168527977,18.64964886,149.66,149.63,6.56247178]
[1750168528177,67.16247178,149.67,149.63,6.56247178]
[1750168528385,6.4,149.67,149.65,6.56247178]
[1750168528688,6.4,149.67,149.64,6.56247178]
[1750168529374,5.4,149.67,149.64,6.56247178]
[1750168529573,5.4,149.67,149.65,6.56247178]
[1750168530254,5.4,149.67,149.66,6.56247178]
[1750168530679,18.64964886,149.7,149.66,6.56247178]
[1750168530882,18.64964886,149.7,149.67,6.56247178]
[1750168531251,25.21212064,149.7,149.66,6.56247178]
[1750168531457,6.56247178,149.69,149.64,6.56247178]
[1750168531683,18.64964886,149.7,149.61,23.53631971]
[1750168531684,6.56247178,149.68,149.61,23.39415814]
[1750168531996,6.56247178,149.68,149.63,6.56247178]
[1750168532201,18.64964886,149.67,149.63,6.56247178]
[1750168532358,25.33114526,149.67,149.63,6.56247178]
[1750168532779,25.33114526,149.67,149.62,6.68342167]
[1750168533019,6.56247178,149.65,149.61,6.56247178]
[1750168533184,6.56247178,149.66,149.62,6.56247178]
[1750168533716,18.64964886,149.65,149.62,6.56247178]
[1750168533883,18.64964886,149.66,149.61,6.56247178]
[1750168534221,28.2,149.65,149.62,6.56247178]
[1750168534825,34.76247178,149.65,149.61,6.56247178]
[1750168535487,41.44483959,149.65,149.61,6.56247178]
[1750168535913,34.88236781,149.65,149.62,6.56247178]
[1750168536616,28.2,149.65,149.62,6.56247178]
[1750168536816,28.2,149.65,149.63,6.56247178]
[1750168537019,60.0936807,149.67,149.63,6.56247178]
[1750168537195,32.56247178,149.69,149.65,6.56247178]
[1750168537394,6.67976834,149.71,149.65,13.24469253]
[1750168537626,19.64178533,149.72,149.68,6.56247178]
[1750168537921,6.4,149.72,149.69,6.56247178]
[1750168538128,6.4,149.72,149.7,6.56247178]
[1750168538435,19.64162815,149.72,149.68,6.56247178]
[1750168538725,6.4,149.72,149.69,6.56247178]
[1750168540717,19.64163076,149.72,149.68,13.24320323]
[1750168541517,12.96247178,149.72,149.68,13.24320323]
[1750168542033,32.56247178,149.69,149.64,6.56247178]
[1750168542326,60.76247178,149.69,149.65,6.56247178]
[1750168542917,67.4432667,149.69,149.65,6.56247178]
[1750168543792,60.88079492,149.69,149.65,6.56247178]
[1750168543993,67.4432667,149.69,149.65,6.56247178]
[1750168545309,54.2,149.69,149.66,6.56247178]
[1750168546824,67.44294901,149.69,149.65,13.24465707]
[1750168547407,54.2,149.69,149.65,13.24465707]
[1750168547803,60.76247178,149.69,149.65,13.24465707]
[1750168548098,54.2,149.69,149.65,13.24465707]
[1750168548314,54.2,149.69,149.66,6.56247178]
[1750168548519,54.2,149.69,149.65,6.68218529]
[1750168548725,26.0,149.69,149.67,6.56247178]
[1750168548925,60.09190993,149.71,149.67,6.56247178]
[1750168549128,19.64181655,149.72,149.68,6.56247178]
[1750168549327,28.2,149.71,149.68,6.56247178]
[1750168549530,28.2,149.71,149.69,6.56247178]
[1750168549732,13.07915704,149.72,149.68,6.56247178]
[1750168549904,41.27915704,149.72,149.68,6.56247178]
[1750168550102,6.4,149.72,149.69,6.56247178]
[1750168550333,6.4,149.72,149.7,6.56247178]
[1750168550531,6.4,149.72,149.69,6.56247178]
[1750168551897,6.4,149.72,149.69,13.24290124]
[1750168552099,6.4,149.72,149.7,6.56247178]
[1750168553014,6.4,149.72,149.69,6.56247178]
[1750168553742,6.4,149.72,149.7,6.56247178]
[1750168554729,6.4,149.72,149.71,6.56247178]
[1750168555033,6.4,149.72,149.7,6.56247178]
[1750168555241,6.4,149.72,149.68,6.68079867]
[1750168555448,6.4,149.72,149.69,6.56247178]
[1750168555943,6.56247178,149.71,149.67,6.56247178]
[1750168556316,6.56247178,149.7,149.66,6.56247178]
[1750168556619,34.74247178,149.71,149.66,6.56247178]
[1750168556941,34.74247178,149.71,149.67,6.56247178]
[1750168557412,34.85967818,149.71,149.67,6.56247178]
[1750168557613,41.42214996,149.71,149.64,6.68270515]
[1750168557812,41.42214996,149.71,149.64,6.56247178]
[1750168557813,25.21212064,149.69,149.64,6.56247178]
[1750168558009,25.21212064,149.69,149.63,1.6654]
[1750168558010,25.21212064,149.69,149.65,6.56247178]
[1750168558412,6.56247178,149.68,149.64,6.56247178]
[1750168558831,13.24347878,149.68,149.64,6.56247178]
[1750168559032,13.24347878,149.68,149.63,8.34836286]
[1750168559242,6.56247178,149.67,149.63,8.22787178]
[1750168560017,6.56247178,149.67,149.63,1.6654]
[1750168560426,6.56247178,149.66,149.62,6.56247178]
[1750168561045,13.24430969,149.66,149.62,6.56247178]
[1750168561240,13.24430969,149.66,149.61,6.68399127]
[1750168561454,6.56247178,149.65,149.6,6.56247178]
[1750168561619,34.74247178,149.65,149.6,6.56247178]
[1750168562330,6.56247178,149.64,149.6,6.56247178]
[1750168562638,18.64964886,149.63,149.59,1.605]
[1750168562845,6.56247178,149.6,149.55,1.5399]
[1750168563046,6.56247178,149.59,149.55,1.5399]
[1750168563244,6.56247178,149.59,149.55,8.10237178]
[1750168563424,26.0,149.62,149.58,6.56247178]
[1750168563625,28.18,149.62,149.6,6.56247178]
[1750168563825,28.18,149.62,149.59,6.56247178]
[1750168564039,28.18,149.62,149.58,6.56247178]
[1750168564660,28.18,149.62,149.59,6.56247178]
[1750168565028,28.18,149.62,149.56,6.82844132]
[1750168565234,28.18,149.62,149.58,6.56247178]
[1750168565744,6.56247178,149.61,149.56,6.68627975]
[1750168565944,6.56247178,149.61,149.57,6.56247178]
[1750168566257,28.18,149.62,149.58,6.56247178]
[1750168566423,28.18,149.62,149.59,6.56247178]
[1750168566623,13.24577754,149.63,149.55,18.25671711]
[1750168566624,13.24577754,149.63,149.58,6.56247178]
[1750168566854,6.56247178,149.62,149.58,6.56247178]
[1750168567931,57.43614886,149.65,149.6,6.56247178]
[1750168568135,6.56247178,149.64,149.6,6.56247178]
[1750168568340,85.8919731,149.65,149.56,6.68627975]
[1750168568341,6.56247178,149.62,149.56,6.68627975]
[1750168568640,6.56247178,149.6,149.56,6.56247178]
[1750168569238,34.74247178,149.61,149.55,8.22644954]
[1750168569441,6.56247178,149.6,149.56,6.56247178]
[1750168569640,6.56247178,149.6,149.55,14.78892132]
[1750168569850,34.86404657,149.61,149.55,14.78892132]
[1750168569851,6.56247178,149.59,149.55,14.78892132]
[1750168570057,6.56247178,149.59,149.55,8.22644954]
[1750168570346,25.21212064,149.6,149.55,14.78892132]
[1750168570662,6.56247178,149.6,149.55,14.78892132]
[1750168571029,26.0,149.63,149.58,6.56247178]
[1750168571232,18.64964886,149.62,149.58,6.56247178]
[1750168571553,6.56247178,149.6,149.55,14.78892132]
[1750168571729,6.56247178,149.59,149.55,14.78892132]
[1750168571933,6.56247178,149.58,149.54,6.68699972]
[1750168572268,6.56247178,149.58,149.54,13.2494715]
[1750168572648,6.56247178,149.59,149.54,13.2494715]
[1750168573179,34.74247178,149.59,149.54,13.2494715]
[1750168574066,34.74247178,149.59,149.54,6.68699972]
[1750168574437,34.74247178,149.59,149.54,13.2494715]
[1750168574647,34.74247178,149.59,149.55,6.56247178]
[1750168575462,34.74247178,149.59,149.55,13.24909067]
[1750168576143,44.64964886,149.62,149.58,6.56247178]
[1750168576354,79.39212064,149.62,149.58,6.56247178]
[1750168576654,53.39212064,149.63,149.59,6.56247178]
[1750168576867,39.06242312,149.65,149.59,6.56247178]
[1750168577047,39.06242312,149.65,149.57,1.5813]
[1750168577048,34.74247178,149.64,149.57,1.5813]
[1750168577259,6.56247178,149.63,149.59,6.56247178]
[1750168577466,6.56247178,149.63,149.59,13.24699256]
[1750168577643,28.18,149.64,149.59,13.24699256]
[1750168577970,41.12247178,149.65,149.59,6.68452078]
[1750168578266,47.80474221,149.65,149.59,6.68452078]
[1750168578475,41.12247178,149.65,149.61,6.56247178]
[1750168578850,6.56247178,149.64,149.59,6.68452078]
[1750168579159,6.56247178,149.63,149.59,13.24699256]
[1750168579356,25.21212064,149.64,149.6,6.56247178]
[1750168579565,53.39212064,149.64,149.6,13.24668426]
[1750168580171,28.18,149.64,149.61,6.56247178]
[1750168580370,41.12247178,149.65,149.61,6.56247178]
[1750168580866,6.38,149.65,149.62,6.56247178]
[1750168581373,6.38,149.65,149.64,6.56247178]
[1750168581537,6.38,149.65,149.63,13.24543372]
[1750168581738,6.38,149.65,149.63,6.68296194]
[1750168581952,6.38,149.65,149.62,13.24596372]
[1750168584352,6.38,149.65,149.58,23.12460262]
[1750168584877,6.38,149.65,149.59,6.68493883]
[1750168585050,12.94247178,149.65,149.61,6.56247178]
[1750168585381,47.80476496,149.65,149.61,6.56247178]
[1750168585760,6.56247178,149.64,149.6,13.24681334]
[1750168585961,34.56,149.65,149.6,13.24681334]
[1750168586162,41.12247178,149.65,149.6,6.68434156]
[1750168586478,41.12247178,149.65,149.61,6.56247178]
[1750168587382,41.12247178,149.65,149.6,6.68434156]
[1750168587556,41.12247178,149.65,149.61,6.56247178]
[1750168588362,41.12247178,149.65,149.61,13.24647035]
[1750168591077,6.56247178,149.64,149.6,6.68430221]
[1750168591271,6.56247178,149.62,149.58,13.24769483]
[1750168591990,3.29099394,149.71,149.62,1.5891]
[1750168592203,6.6363,149.77,149.71,26.0]
[1750168592488,4.96935178,149.8,149.71,26.0]
[1750168592781,4.96935178,149.8,149.76,6.56247178]
[1750168592999,18.933972,149.8,149.77,6.56247178]
[1750168593302,13.31150692,149.81,149.73,6.56247178]
[1750168593581,13.31150692,149.81,149.69,1.73126157]
[1750168593582,26.0,149.77,149.69,1.73126157]
[1750168593792,26.0,149.77,149.73,6.56247178]
[1750168594079,26.0,149.77,149.74,6.56247178]
[1750168594584,26.0,149.77,149.76,6.56247178]
[1750168594956,26.0,149.77,149.73,13.2410197]
[1750168594957,26.0,149.77,149.75,11.2403699]
[1750168595376,46.92964886,149.8,149.76,11.2403699]
[1750168595679,79.60529235,149.8,149.76,11.2403699]
[1750168596058,90.84566225,149.8,149.76,11.2403699]
[1750168596384,84.17001876,149.8,149.76,11.2403699]
[1750168596983,72.92964886,149.8,149.76,11.2403699]
[1750168597188,90.84567651,149.8,149.76,11.2403699]
[1750168597888,79.60530661,149.8,149.76,11.2403699]
[1750168598181,90.84567651,149.8,149.74,6.67816281]
[1750168598386,11.2403699,149.79,149.75,11.2403699]
[1750168598767,72.92964886,149.8,149.76,11.2403699]
[1750168599081,90.84560984,149.8,149.76,11.2403699]
[1750168599255,90.84560984,149.8,149.71,23.37853182]
[1750168599454,90.84560984,149.8,149.75,11.2403699]
[1750168599882,11.2403699,149.77,149.71,6.67958052]
[1750168600065,11.2403699,149.78,149.74,11.2403699]
[1750168600267,18.64964886,149.79,149.71,6.67958052]
[1750168600465,11.2403699,149.76,149.72,11.2403699]
[1750168600880,17.91786375,149.76,149.71,6.67958052]
[1750168601092,17.91786375,149.76,149.72,11.2403699]
[1750168601503,26.0,149.76,149.73,11.2403699]
[1750168602401,26.0,149.76,149.71,6.67958052]
[1750168602596,37.2403699,149.76,149.72,11.2403699]
[1750168602766,43.91785363,149.76,149.71,6.67958052]
[1750168602973,43.91785363,149.76,149.72,11.2403699]
[1750168603684,32.67748373,149.76,149.72,11.2403699]
[1750168603895,43.91785363,149.76,149.72,11.2403699]
[1750168608709,32.67748373,149.76,149.73,11.2403699]
[1750168609016,26.0,149.76,149.73,11.2403699]
[1750168609571,17.91695833,149.78,149.74,11.2403699]
[1750168609871,46.07695833,149.78,149.74,11.2403699]
[1750168611173,46.07695833,149.78,149.73,17.91886217]
[1750168611371,46.05695833,149.78,149.73,17.91886217]
[1750168611905,34.81658843,149.78,149.74,11.2403699]
[1750168612870,18.64964886,149.82,149.77,11.2403699]
[1750168613176,6.67467627,149.82,149.78,11.2403699]
[1750168613397,6.67467627,149.82,149.73,0.14216157]
[1750168613398,34.81467627,149.82,149.79,11.2403699]
[1750168613576,34.81467627,149.82,149.78,11.2403699]
[1750168613996,6.67467627,149.82,149.78,11.2403699]
[1750168614300,34.81467627,149.82,149.79,11.2403699]
[1750168614595,6.67467627,149.82,149.79,11.2403699]
[1750168614905,6.36,149.83,149.81,11.2403699]
[1750168615709,6.36,149.83,149.77,23.36890852]
[1750168615710,6.36,149.83,149.82,11.2403699]
[1750168616101,6.36,149.83,149.82,17.91504617]
[1750168616413,30.93484209,149.85,149.82,17.91504617]
[1750168616593,30.93484209,149.85,149.84,11.2403699]
[1750168616795,30.93484209,149.85,149.82,6.67467627]
[1750168616997,30.93484209,149.85,149.84,6.54931243]
[1750168617617,11.30482023,149.85,149.84,6.54931243]
[1750168619212,11.30482023,149.85,149.83,6.54931243]
[1750168619411,11.30482023,149.85,149.82,6.54931243]
[1750168619608,11.30482023,149.85,149.83,6.54931243]
[1750168620399,11.30482023,149.85,149.84,6.54931243]
[1750168620615,6.36,149.88,149.84,6.54931243]
[1750168620816,6.36,149.88,149.86,6.54931243]
[1750168621720,6.36,149.88,149.87,6.54931243]
[1750168621890,32.67111946,149.9,149.87,6.54931243]
[1750168622098,18.64964886,149.94,149.89,6.54931243]
[1750168622341,18.64964886,149.94,149.88,6.67200427]
[1750168622342,6.36,149.95,149.93,6.54931243]
[1750168622501,161.02434024,149.97,149.94,6.54931243]
[1750168622502,11.92434024,149.97,149.94,6.54931243]
[1750168622701,28.12,149.99,149.96,6.54931243]
[1750168622920,54.00798191,150.0,149.96,6.54931243]
[1750168623135,47.69608191,150.0,149.96,6.54931243]
[1750168623298,6.3119,150.04,149.98,6.54931243]
[1750168623498,6.3119,150.04,149.95,1.6423]
[1750168623499,6.54931243,150.02,149.95,1.6423]
[1750168623735,6.54931243,150.02,149.97,6.54931243]
[1750168623902,32.66564232,150.03,149.97,6.54931243]
[1750168624106,18.64964886,150.01,149.96,6.54931243]
[1750168624327,18.64964886,150.01,149.97,6.54931243]
[1750168624728,6.54931243,149.98,149.91,1.56]
[1750168624898,11.21538877,149.96,149.92,11.21538877]
[1750168625223,28.12,149.98,149.94,11.21538877]
[1750168625530,39.33538877,149.98,149.94,11.21538877]
[1750168625821,39.33538877,149.98,149.91,1.56]
[1750168626118,39.33538877,149.98,149.93,11.21538877]
[1750168626309,34.78761896,149.98,149.93,11.21538877]
[1750168626508,46.00300773,149.98,149.93,11.21538877]
[1750168626815,11.21538877,149.97,149.92,6.6700677]
[1750168627022,11.21538877,149.97,149.93,11.21538877]
[1750168627838,11.21538877,149.97,149.93,17.88492876]
[1750168628022,39.33538877,149.98,149.93,17.88492876]
[1750168628537,46.00303145,149.98,149.93,17.88492876]
[1750168628716,28.12,149.98,149.94,11.21538877]
[1750168629119,0.28432314,150.02,149.93,6.66953999]
[1750168629340,11.21538877,150.02,149.97,11.21538877]
[1750168629535,11.21538877,150.01,149.96,11.21538877]
[1750168629917,39.33538877,150.02,149.97,17.88316564]
[1750168630118,11.21538877,150.01,149.97,17.88316564]
[1750168630940,11.21538877,150.01,149.97,11.21538877]
[1750168631136,11.21538877,150.01,149.96,17.88367251]
[1750168631339,11.21538877,150.01,149.96,6.66828374]
[1750168631550,26.0,149.99,149.91,27.70216157]
[1750168631715,11.21538877,149.97,149.93,11.21538877]
[1750168631919,11.21538877,149.96,149.91,8.23052639]
[1750168632125,11.21538877,149.96,149.92,11.21538877]
[1750168632413,26.0,149.99,149.95,11.21538877]
[1750168632614,11.21538877,149.97,149.93,11.21538877]
[1750168632832,11.21538877,149.96,149.91,8.23052639]
[1750168633022,11.21538877,149.93,149.89,17.88688211]
[1750168633631,11.21538877,149.94,149.89,17.88688211]
[1750168634440,32.66896592,149.95,149.89,17.88688211]
[1750168634649,11.21538877,149.93,149.89,17.88688211]
[1750168634829,32.66896592,149.95,149.89,17.88688211]
[1750168635029,11.21538877,149.94,149.9,11.21538877]
[1750168635232,32.66896592,149.95,149.9,11.21538877]
[1750168635546,37.21538877,149.95,149.9,11.21538877]
[1750168635749,11.21538877,149.94,149.9,11.21538877]
[1750168636044,26.0,149.95,149.9,11.21538877]
[1750168636244,11.21538877,149.94,149.88,6.67200427]
[1750168636553,11.21538877,149.94,149.9,11.21538877]
[1750168637152,11.21538877,149.94,149.9,17.88639816]
[1750168637521,26.0,149.95,149.91,11.21538877]
[1750168637840,37.21538877,149.95,149.91,11.21538877]
[1750168638228,24.24343164,149.97,149.93,11.21538877]
[1750168638419,17.57538877,149.97,149.93,11.21538877]
[1750168639217,6.36,149.97,149.94,11.21538877]
[1750168640035,11.21538877,149.95,149.87,18.3676698]
[1750168640252,31.67766037,149.97,149.89,11.21538877]
[1750168640253,11.21538877,149.94,149.89,11.21538877]
[1750168640423,18.64964886,149.96,149.89,11.21538877]
[1750168640623,11.21538877,149.94,149.89,11.21538877]
[1750168640823,11.21538877,149.94,149.87,18.22550823]
[1750168640824,11.21538877,149.94,149.9,11.21538877]
[1750168641051,11.21538877,149.95,149.9,11.21538877]
[1750168641239,11.21538877,149.95,149.9,17.88612854]
[1750168641580,11.21538877,149.94,149.9,17.88612854]
[1750168641754,11.21538877,149.94,149.87,18.22550823]
[1750168641755,11.21538877,149.91,149.87,8.21782292]
[1750168641955,11.21538877,149.9,149.87,8.21782292]
[1750168642248,11.21538877,149.9,149.87,1.5454]
[1750168642635,0.28432314,149.93,149.87,1.5454]
[1750168642839,11.21538877,149.9,149.86,17.88812015]
[1750168644045,11.21538877,149.89,149.85,17.88859848]
[1750168644647,11.21538877,149.88,149.85,6.67320971]
[1750168644953,11.21538877,149.88,149.84,12.76928877]
[1750168644954,11.21538877,149.88,149.84,8.22764689]
[1750168645855,11.21538877,149.88,149.84,19.44303566]
[1750168646032,11.21538877,149.89,149.84,19.44303566]
[1750168646575,11.21538877,149.88,149.84,19.44303566]
[1750168646849,11.21538877,149.87,149.84,8.22764689]
[1750168647054,11.21538877,149.87,149.84,6.67374689]
[1750168647929,11.21538877,149.86,149.83,96.05092452]
[1750168648128,6.64432314,149.9,149.83,6.67421079]
[1750168648129,11.21538877,149.85,149.83,6.67421079]
[1750168648360,11.21538877,149.86,149.83,6.67421079]
[1750168650355,11.21538877,149.86,149.82,11.21538877]
[1750168650536,26.0,149.87,149.83,11.21538877]
[1750168650726,37.21538877,149.87,149.83,11.21538877]
[1750168651156,11.21538877,149.86,149.81,6.67512182]
[1750168651357,11.21538877,149.84,149.81,6.67512182]
[1750168651572,11.21538877,149.82,149.76,1.6018]
[1750168651859,0.28432314,149.86,149.77,11.21538877]
[1750168652046,0.28432314,149.86,149.76,8.27915042]
[1750168652358,11.21538877,149.81,149.76,24.97252648]
[1750168652556,11.21538877,149.79,149.76,8.27915042]
[1750168655770,11.21538877,149.79,149.76,1.6018]
[1750168655968,11.21538877,149.78,149.76,8.27911124]
[1750168656959,6.67529567,149.81,149.76,8.27911124]
[1750168657158,26.0,149.8,149.77,11.21538877]
[1750168657681,37.21538877,149.8,149.76,19.49450001]
[1750168657970,26.0,149.8,149.76,19.49450001]
[1750168658177,37.21538877,149.8,149.76,19.49450001]
[1750168658362,37.21538877,149.8,149.76,8.27911124]